bitfinex/quotes_ETHUSD_20250507
["timestamp","ask_amount","ask_price","bid_price","bid_amount"]
[1746620230589,5.45375602,1833.6,1833.4,1.27455598]
[1746620230771,5.45307029,1833.9,1833.5,6.20634933]
[1746620231010,11.00922361,1833.8,1833.6,0.62063493]
[1746620231307,5.55583107,1833.8,1833.7,5.378]
[1746620231802,0.10245194,1833.8,1833.7,5.378]
[1746620231982,0.10245194,1833.8,1833.7,6.1318]
[1746620232310,0.10282546,1833.8,1833.7,6.18632879]
[1746620232521,10.9060942,1833.9,1833.7,6.18632879]
[1746620232727,5.55598283,1833.8,1833.7,6.18632879]
[1746620232933,0.10282546,1833.8,1833.7,6.75043288]
[1746620233126,5.45290789,1833.9,1833.7,6.75043288]
[1746620235041,5.45315737,1833.8,1833.7,5.378]
[1746620238528,5.96083747,1833.8,1833.7,5.378]
[1746620239239,6.26554469,1833.8,1833.7,5.378]
[1746620240366,6.36931663,1833.8,1833.7,5.378]
[1746620241868,0.91615926,1833.8,1833.7,5.378]
[1746620242160,0.81238732,1833.8,1833.7,6.2052]
[1746620242353,0.81238732,1833.8,1833.7,6.25972862]
[1746620242577,0.81238732,1833.8,1833.7,6.2052]
[1746620243124,0.91672247,1833.8,1833.7,6.2052]
[1746620243326,0.91672247,1833.8,1833.7,7.37109191]
[1746620243885,0.91672247,1833.8,1833.7,7.42562048]
[1746620244681,0.61201525,1833.8,1833.7,7.42562048]
[1746620244976,0.61201525,1833.8,1833.7,12.87907524]
[1746620245180,0.61201525,1833.8,1833.7,7.37109191]
[1746620245343,0.10433515,1833.8,1833.7,7.37109191]
[1746620245538,5.4524421,1834.1,1833.7,7.37109191]
[1746620245868,0.10744431,1834.0,1833.8,0.73710919]
[1746620246540,0.10744431,1834.0,1833.8,0.79163253]
[1746620246737,5.56011192,1834.0,1833.8,0.73710919]
[1746620247580,5.56003535,1834.0,1833.8,0.73710919]
[1746620248480,0.10744431,1834.0,1833.8,0.79163375]
[1746620248669,0.10744431,1834.0,1833.8,0.73710919]
[1746620248869,5.45241355,1834.1,1833.9,0.05452266]
[1746620249069,10.90492768,1834.1,1833.9,0.05452266]
[1746620249282,10.90492768,1834.1,1833.8,0.73710919]
[1746620249449,5.45241355,1834.1,1833.9,0.05452264]
[1746620250271,5.45241355,1834.1,1833.9,0.86532264]
[1746620250458,5.4525627,1834.0,1833.9,0.86532264]
[1746620250782,5.45286002,1833.9,1833.8,0.73710919]
[1746620252595,5.45286002,1833.9,1833.7,27.00569191]
[1746620253308,5.4525627,1834.0,1833.7,27.00569191]
[1746620253597,10.9053511,1834.0,1833.7,27.00569191]
[1746620253801,5.45293099,1833.9,1833.7,27.00569191]
[1746620256598,5.45258136,1834.0,1833.7,27.00569191]
[1746620258294,5.45243436,1834.1,1833.8,2.75509381]
[1746620258498,10.90492845,1834.1,1833.8,2.75509381]
[1746620258799,5.45234925,1834.1,1833.9,0.7927]
[1746620259006,5.4525627,1834.0,1833.9,0.7927]
[1746620259703,5.45234925,1834.1,1833.9,0.7927]
[1746620259874,5.4525627,1834.0,1833.9,0.7927]
[1746620260410,15.64986158,1835.0,1833.9,6.60031171]
[1746620260703,5.4518034,1834.3,1834.0,0.05451781]
[1746620260907,5.4518034,1834.3,1834.1,5.377]
[1746620261909,5.4518034,1834.3,1834.1,6.1378]
[1746620262806,10.90376772,1834.3,1834.1,6.1378]
[1746620262976,5.4518034,1834.3,1834.1,6.1378]
[1746620263175,10.90373201,1834.3,1834.1,6.1378]
[1746620263484,5.45196816,1834.2,1834.1,6.1378]
[1746620263681,5.45124173,1834.5,1834.1,12.2091888]
[1746620263916,5.45112618,1834.5,1834.1,12.2091888]
[1746620264212,10.90246094,1834.5,1834.2,0.05451314]
[1746620264386,5.45112618,1834.5,1834.2,0.05451314]
[1746620264727,5.45112397,1834.5,1834.2,0.05451314]
[1746620264904,5.45138219,1834.4,1834.2,0.05451314]
[1746620265213,10.90243449,1834.5,1834.2,0.05451314]
[1746620265439,5.45103374,1834.6,1834.3,0.7786]
[1746620265716,5.45023529,1834.8,1834.4,5.50577537]
[1746620265872,5.45023529,1834.8,1834.5,6.1932]
[1746620266509,8.44988827,1834.9,1834.5,6.1932]
[1746620266712,5.45050788,1834.7,1834.5,6.1932]
[1746620267317,5.45024906,1834.8,1834.5,6.1932]
[1746620267622,5.45024906,1834.8,1834.5,7.3576468]
[1746620267803,10.90020459,1834.9,1834.5,12.86322291]
[1746620267975,5.45019866,1834.8,1834.5,12.80871994]
[1746620268181,5.45005253,1834.9,1834.6,0.0545026]
[1746620269211,5.44948485,1835.1,1834.7,6.23626858]
[1746620269427,5.44969901,1835.0,1834.7,0.7858]
[1746620269710,5.44969901,1835.0,1834.7,0.84029794]
[1746620270014,5.44969901,1835.0,1834.7,1.46395559]
[1746620270882,10.2,1835.6,1834.8,0.7854]
[1746620271138,5.44843956,1835.4,1835.0,5.44945403]
[1746620271429,5.44884256,1835.3,1835.1,0.05448876]
[1746620271628,5.44884256,1835.3,1835.0,0.7854]
[1746620271783,5.44899738,1835.2,1835.1,0.0544887]
[1746620271985,5.44863998,1835.4,1835.0,7.39599752]
[1746620272181,6.00829734,1836.3,1835.0,1.94650906]
[1746620272379,5.44791662,1835.6,1835.2,5.44882508]
[1746620272686,5.44768491,1835.7,1835.4,0.7941]
[1746620272880,3.0,1835.9,1835.3,5.375]
[1746620272881,5.44796702,1835.6,1835.3,5.375]
[1746620273113,5.44796702,1835.6,1835.3,5.9125]
[1746620273383,5.44813304,1835.5,1835.3,5.9125]
[1746620273617,5.44795927,1835.6,1835.3,5.9125]
[1746620273801,5.44695842,1835.9,1835.3,5.9125]
[1746620274023,5.4479513,1835.6,1835.3,5.9125]
[1746620274557,10.89534941,1835.7,1835.3,5.96697955]
[1746620274714,5.44753852,1835.7,1835.5,0.7787]
[1746620274919,5.44737619,1835.8,1835.5,0.7787]
[1746620275658,5.4475292,1835.7,1835.5,0.7787]
[1746620276033,8.44632645,1836.1,1835.3,1.3555]
[1746620276034,5.44718001,1835.9,1835.3,1.3555]
[1746620276219,5.44767536,1835.7,1835.4,5.375]
[1746620276556,5.44781387,1835.6,1835.4,5.375]
[1746620277112,5.44834647,1835.5,1835.1,6.795]
[1746620277311,5.44835326,1835.5,1835.2,5.374]
[1746620277532,3.0,1835.9,1835.2,5.374]
[1746620277707,5.44832751,1835.5,1835.2,5.374]
[1746620278132,5.44855153,1835.4,1835.2,5.374]
[1746620279212,5.44870048,1835.3,1835.2,5.374]
[1746620279409,5.44859873,1835.4,1835.2,5.374]
[1746620279946,5.44800133,1835.6,1835.2,5.374]
[1746620280160,3.0,1835.7,1835.4,0.7594]
[1746620280307,5.44740259,1835.8,1835.4,0.7594]
[1746620280513,5.44751615,1835.7,1835.4,0.7594]
[1746620280922,5.4478106,1835.6,1835.5,5.374]
[1746620281452,5.44853043,1835.4,1835.1,6.04]
[1746620281659,5.44899738,1835.2,1835.1,6.04]
[1746620281960,5.44899738,1835.2,1835.1,5.374]
[1746620282318,5.44988827,1834.9,1834.8,19.645]
[1746620282520,3.0,1835.5,1834.8,25.019]
[1746620282726,5.44969143,1835.0,1834.8,25.019]
[1746620283876,5.44988827,1834.9,1834.8,25.019]
[1746620284972,5.44942765,1835.1,1834.8,25.019]
[1746620285139,5.44928931,1835.2,1834.9,2.5019]
[1746620285321,5.4497273,1835.0,1834.8,25.019]
[1746620285521,5.44949579,1835.1,1834.8,25.019]
[1746620285750,5.4496004,1835.0,1834.8,25.019]
[1746620288358,10.8994628,1835.0,1834.8,25.019]
[1746620288665,5.44988827,1834.9,1834.8,25.019]
[1746620288976,5.44979172,1835.0,1834.8,25.019]
[1746620289389,5.44988827,1834.9,1834.8,25.019]
[1746620294691,5.44979172,1835.0,1834.8,25.019]
[1746620296989,5.44948559,1835.1,1834.8,28.2947]
[1746620297197,5.44840361,1835.4,1835.0,6.2232953]
[1746620297395,5.44840361,1835.4,1835.1,0.05448854]
[1746620297554,5.44840361,1835.4,1835.2,5.465]
[1746620297755,5.44870051,1835.3,1835.2,5.465]
[1746620298157,5.44823177,1835.5,1835.2,6.0115]
[1746620298356,5.44823177,1835.5,1835.3,0.8245]
[1746620298587,5.44840361,1835.4,1835.3,0.8245]
[1746620299699,5.44823177,1835.5,1835.3,0.8245]
[1746620300096,5.44786985,1835.6,1835.3,0.8245]
[1746620300396,5.44825575,1835.5,1835.3,1.51354851]
[1746620301261,10.89660186,1835.5,1835.3,1.51354851]
[1746620301468,5.44825575,1835.5,1835.3,1.51354851]
[1746620304804,5.44826252,1835.5,1835.3,0.68904851]
[1746620305008,5.44826252,1835.5,1835.2,6.0115]
[1746620305295,5.44797028,1835.6,1835.2,11.46045193]
[1746620305502,5.4481198,1835.5,1835.2,6.0115]
[1746620307477,5.44843818,1835.4,1835.2,6.0115]
[1746620307731,5.44843818,1835.4,1835.3,5.464]
[1746620307881,5.4481198,1835.5,1835.3,5.464]
[1746620308199,10.89651446,1835.5,1835.3,5.464]
[1746620308364,5.44840361,1835.4,1835.3,5.464]
[1746620308564,5.44357092,1835.4,1835.3,5.464]
[1746620308961,5.4481198,1835.5,1835.3,5.464]
[1746620309391,5.44751321,1835.7,1835.3,5.464]
[1746620309565,5.44816984,1835.5,1835.3,5.464]
[1746620309770,5.44817935,1835.5,1835.3,5.464]
[1746620309978,5.44840361,1835.4,1835.3,5.464]
[1746620310868,5.44817935,1835.5,1835.3,5.464]
[1746620311461,5.44840361,1835.4,1835.3,5.464]
[1746620311675,5.44755681,1835.7,1835.3,12.23026522]
[1746620311877,5.44801708,1835.6,1835.3,6.78164845]
[1746620312094,5.44821712,1835.5,1835.3,6.78164845]
[1746620314704,5.44840361,1835.4,1835.3,6.01584845]
[1746620314870,5.44840361,1835.4,1835.3,5.464]
[1746620315693,8.9557606,1835.4,1835.3,5.464]
[1746620316008,5.44950893,1835.1,1834.9,3.67538126]
[1746620316212,5.44950893,1835.1,1835.0,5.464]
[1746620320708,8.44840361,1835.4,1835.0,5.464]
[1746620320709,5.44840361,1835.4,1835.1,0.7554]
[1746620321000,5.44870595,1835.3,1835.1,1.92228483]
[1746620321210,5.44899738,1835.2,1835.0,6.2194]
[1746620322921,5.44881013,1835.3,1835.0,11.66894572]
[1746620323823,5.44828548,1835.5,1835.1,5.50366307]
[1746620324121,5.44844633,1835.4,1835.1,5.50366307]
[1746620324291,5.44844633,1835.4,1835.2,0.55036631]
[1746620325083,5.44844633,1835.4,1835.0,11.66879172]
[1746620325415,5.44844633,1835.4,1835.1,5.50369265]
[1746620325617,5.44844633,1835.4,1835.1,0.05448406]
[1746620326410,10.89707741,1835.4,1835.0,11.66879172]
[1746620326635,5.44844633,1835.4,1835.0,11.66879172]
[1746620326799,5.44844633,1835.4,1835.1,1.16687917]
[1746620326989,5.44873428,1835.3,1835.1,20.80087917]
[1746620328501,5.44899738,1835.2,1835.1,20.80087917]
[1746620330445,5.44899738,1835.2,1835.1,19.634]
[1746620330747,5.44899738,1835.2,1835.1,25.082]
[1746620330948,5.95727626,1835.2,1835.1,25.082]
[1746620331124,6.26223998,1835.2,1835.1,25.082]
[1746620333238,5.7539611,1835.2,1835.1,25.082]
[1746620333405,5.44899738,1835.2,1835.1,25.082]
[1746620337135,5.95737227,1835.2,1835.1,25.082]
[1746620338240,0.50837489,1835.2,1835.1,27.5902]
[1746620338541,0.50837489,1835.2,1835.1,28.4153]
[1746620338907,5.44852014,1835.4,1835.1,28.4153]
[1746620339204,5.44852014,1835.4,1835.2,0.05448407]
[1746620340141,5.44825322,1835.5,1835.2,0.05448407]
[1746620340330,5.44851084,1835.4,1835.2,3.4463904]
[1746620341153,10.89714956,1835.4,1835.2,3.4463904]
[1746620341362,5.44870048,1835.3,1835.2,3.39190633]
[1746620341950,5.44851084,1835.4,1835.2,3.39190633]
[1746620342646,5.44851084,1835.4,1835.2,3.44639041]
[1746620342848,5.44851084,1835.4,1835.3,0.34463904]
[1746620343950,5.95692274,1835.4,1835.3,0.34463904]
[1746620344154,5.44870048,1835.3,1835.2,3.39190633]
[1746620345275,5.95708765,1835.3,1835.2,3.39190633]
[1746620346439,5.44870048,1835.3,1835.2,3.39190633]
[1746620348954,10.8971611,1835.4,1835.2,3.39190633]
[1746620349145,10.8971611,1835.4,1835.2,3.44639046]
[1746620349346,5.44870048,1835.3,1835.2,3.39190633]
[1746620349853,5.44851084,1835.4,1835.2,3.39190633]
[1746620350058,5.44851084,1835.4,1835.3,0.33919063]
[1746620351460,5.44794163,1835.6,1835.4,0.7708]
[1746620351623,5.44794163,1835.6,1835.5,5.448]
[1746620352036,5.95656048,1835.6,1835.5,5.448]
[1746620352663,6.26173202,1835.6,1835.5,5.448]
[1746620353363,5.44899738,1835.2,1835.1,29.34938126]
[1746620353663,5.44899738,1835.2,1835.1,28.74938126]
[1746620354250,5.44872361,1835.3,1835.1,28.74938126]
[1746620355668,10.89720554,1835.4,1835.1,28.74938126]
[1746620355867,5.44873953,1835.3,1835.1,28.74938126]
[1746620356069,5.44873953,1835.3,1835.2,2.87493813]
[1746620359169,5.44899738,1835.2,1835.1,25.074]
[1746620360549,5.95750898,1835.2,1835.1,25.074]
[1746620360893,5.44899738,1835.2,1835.1,25.074]
[1746620361840,5.75410865,1835.2,1835.1,25.074]
[1746620362166,6.26260999,1835.2,1835.1,25.074]
[1746620366688,6.98551669,1835.2,1835.1,19.634]
[1746620366858,6.26260999,1835.2,1835.1,25.074]
[1746620369969,5.95749872,1835.2,1835.1,25.074]
[1746620371467,5.95749872,1835.2,1835.1,5.44]
[1746620373187,5.44899738,1835.2,1835.1,5.44]
[1746620375102,5.95713727,1835.2,1835.1,5.44]
[1746620376000,6.26199465,1835.2,1835.1,5.44]
[1746620384205,5.75385476,1835.2,1835.1,5.44]
[1746620384410,6.26207129,1835.2,1835.1,5.44]
[1746620386915,6.26207129,1835.2,1835.1,6.2698]
[1746620394579,5.95721391,1835.2,1835.1,6.2698]
[1746620394812,5.95721391,1835.2,1835.1,6.90222923]
[1746620400620,0.50821653,1835.2,1835.1,12.35152354]
[1746620400917,0.50821653,1835.2,1835.1,6.90222923]
[1746620401094,0.50821653,1835.2,1835.1,6.95671569]
[1746620401305,5.44852913,1835.4,1835.1,6.95671569]
[1746620401646,0.50860953,1835.3,1835.2,0.69567157]
[1746620401919,0.50860971,1835.3,1835.2,0.69567157]
[1746620402726,5.4482688,1835.5,1835.2,6.14466454]
[1746620402929,5.44822878,1835.5,1835.3,0.8082]
[1746620403422,5.44769282,1835.7,1835.3,0.8082]
[1746620403625,5.44797454,1835.6,1835.3,0.8082]
[1746620404110,5.44662309,1836.0,1835.4,5.448274]
[1746620404288,5.44778359,1835.7,1835.5,6.2245]
[1746620404482,10.89556718,1835.7,1835.5,6.2245]
[1746620404885,5.44780998,1835.6,1835.5,6.2245]
[1746620407540,5.44751036,1835.8,1835.5,6.2245]
[1746620407741,5.44743359,1835.8,1835.5,6.2245]
[1746620408049,5.44743359,1835.8,1835.7,0.7896]
[1746620408339,3.0,1836.0,1835.7,0.7896]
[1746620408340,5.44672134,1836.0,1835.7,0.7896]
[1746620408646,5.44620261,1836.2,1835.9,0.773]
[1746620408827,5.44620261,1836.2,1836.0,5.427]
[1746620409154,5.44604774,1836.2,1836.0,5.427]
[1746620409346,5.44602984,1836.2,1836.1,1.3689]
[1746620409501,5.44559498,1836.4,1836.2,0.8262]
[1746620409918,5.44527078,1836.5,1836.2,0.88065502]
[1746620410125,5.44498268,1836.6,1836.2,6.27221733]
[1746620410423,5.44498268,1836.6,1836.2,6.27207585]
[1746620410628,5.4453043,1836.5,1836.3,0.62720759]
[1746620410831,5.4453043,1836.5,1836.4,5.426]
[1746620412866,5.44573326,1836.3,1836.2,0.8262]
[1746620413066,5.44573326,1836.3,1836.2,6.2512]
[1746620413754,5.44573326,1836.3,1836.2,5.425]
[1746620418564,5.44324003,1837.2,1836.2,11.63324883]
[1746620418727,10.2,1837.4,1836.3,1.98072488]
[1746620418728,5.44501711,1836.6,1836.3,1.98072488]
[1746620418926,5.44501711,1836.6,1836.4,0.05444823]
[1746620419153,5.44454898,1836.7,1836.4,0.05444823]
[1746620419349,5.44454898,1836.7,1836.5,0.8174]
[1746620419555,5.44445834,1836.8,1836.6,5.427]
[1746620419761,5.44454728,1836.7,1836.6,6.05144]
[1746620419956,5.44445834,1836.8,1836.6,6.05144]
[1746620420484,5.44360356,1837.1,1836.7,0.8174]
[1746620420686,5.44248911,1837.4,1836.7,0.8174]
[1746620420687,5.4439218,1837.0,1836.7,0.87183931]
[1746620420852,5.4439218,1837.0,1836.7,6.31630603]
[1746620421186,5.4439218,1837.0,1836.8,0.6316306]
[1746620421683,5.44388809,1837.0,1836.7,0.87183931]
[1746620422054,10.88778677,1837.0,1836.7,0.8174]
[1746620422286,5.44397452,1836.9,1836.7,0.8174]
[1746620422679,5.44425087,1836.8,1836.7,0.8174]
[1746620423670,5.4439968,1836.9,1836.7,0.8174]
[1746620424065,5.44425087,1836.8,1836.7,0.8174]
[1746620424380,5.44425087,1836.8,1836.7,1.504284]
[1746620424798,5.4439968,1836.9,1836.7,1.504284]
[1746620425099,5.4437619,1837.0,1836.7,1.504284]
[1746620425256,5.4437619,1837.0,1836.7,6.94882444]
[1746620425587,5.4437619,1837.0,1836.9,0.812]
[1746620425789,5.44353866,1837.1,1836.9,0.812]
[1746620425951,5.44353866,1837.1,1837.0,5.425]
[1746620429110,5.44539251,1836.5,1836.4,0.8105]
[1746620429308,5.44539251,1836.5,1836.4,6.2355]
[1746620429495,5.44539251,1836.5,1836.4,6.85905]
[1746620432018,5.66125197,1836.5,1836.4,6.04855]
[1746620432478,5.66125197,1836.5,1836.4,5.425]
[1746620433389,5.66125197,1836.5,1836.4,5.375]
[1746620435134,5.66099967,1836.5,1836.4,5.375]
[1746620435551,5.66099967,1836.5,1836.4,6.1284]
[1746620435704,0.21585946,1836.5,1836.4,6.1284]
[1746620435904,0.21585946,1836.5,1836.4,7.28580961]
[1746620437537,0.21585946,1836.5,1836.4,12.78569598]
[1746620437705,5.4446617,1836.7,1836.4,7.28580961]
[1746620437908,0.21844738,1836.6,1836.4,7.28580961]
[1746620438123,5.4446617,1836.7,1836.4,7.34025462]
[1746620438332,0.21844738,1836.6,1836.5,0.73402546]
[1746620438540,5.4446617,1836.7,1836.5,0.73402546]
[1746620438743,5.66329111,1836.6,1836.4,7.28580961]
[1746620438919,11.10836399,1836.6,1836.4,7.28580961]
[1746620439121,5.66329111,1836.6,1836.4,7.28580961]
[1746620439440,0.21844738,1836.6,1836.4,7.28580961]
[1746620439641,5.66348748,1836.6,1836.4,7.28580961]
[1746620439839,5.44473946,1836.7,1836.5,0.72858096]
[1746620440609,5.66351631,1836.6,1836.5,0.72858096]
[1746620441615,0.21867258,1836.6,1836.5,0.72858096]
[1746620441938,5.44473946,1836.7,1836.5,0.72858096]
[1746620442143,0.21901671,1836.6,1836.5,0.72858096]
[1746620442449,10.88882846,1836.8,1836.5,0.78302605]
[1746620442747,5.44459517,1836.7,1836.5,0.78302605]
[1746620442933,0.21901671,1836.6,1836.5,0.78302605]
[1746620443246,5.44459517,1836.7,1836.5,0.78302605]
[1746620443448,0.21901671,1836.6,1836.5,0.78302605]
[1746620443745,5.44459517,1836.7,1836.5,0.78302605]
[1746620443946,0.21901671,1836.6,1836.5,0.78302605]
[1746620444151,5.44459517,1836.7,1836.5,0.78302605]
[1746620444324,0.21901671,1836.6,1836.5,0.72858096]
[1746620444516,5.44451447,1836.8,1836.5,0.72858096]
[1746620444853,5.66416053,1836.7,1836.6,0.7537]
[1746620445017,0.21961295,1836.7,1836.6,0.7537]
[1746620446047,0.21961295,1836.7,1836.6,0.80814226]
[1746620446247,0.21961295,1836.7,1836.6,1.50632795]
[1746620446672,5.66416023,1836.7,1836.6,0.05444226]
[1746620446827,10.88993237,1836.6,1836.4,6.1287]
[1746620447024,5.44514021,1836.5,1836.4,6.1287]
[1746620447222,5.44543672,1836.4,1836.3,19.621]
[1746620447436,5.44543672,1836.4,1836.3,25.045]
[1746620447643,5.66592586,1836.4,1836.3,25.045]
[1746620448070,0.22048914,1836.4,1836.3,25.045]
[1746620448566,5.44543672,1836.4,1836.3,25.045]
[1746620448775,5.66603846,1836.4,1836.3,25.045]
[1746620449063,0.22060174,1836.4,1836.3,25.045]
[1746620449265,5.66603846,1836.4,1836.3,25.045]
[1746620455191,0.22060174,1836.4,1836.3,25.045]
[1746620455493,5.66603846,1836.4,1836.3,27.5495]
[1746620457001,0.22060174,1836.4,1836.3,27.5495]
[1746620457162,0.22060174,1836.4,1836.3,28.3824]
[1746620457362,5.44514562,1836.5,1836.3,28.3824]
[1746620457562,0.22060174,1836.4,1836.3,33.82809437]
[1746620457785,5.44501069,1836.6,1836.3,33.82809437]
[1746620458067,0.22032203,1836.5,1836.4,3.38280944]
[1746620459306,0.22032203,1836.5,1836.4,3.43725919]
[1746620459504,5.44438135,1836.8,1836.5,5.44506299]
[1746620459702,5.44455255,1836.7,1836.5,0.8247]
[1746620460024,5.66196987,1836.7,1836.5,0.8247]
[1746620460174,5.66196987,1836.7,1836.5,1.78999462]
[1746620460508,5.66196987,1836.7,1836.5,0.8247]
[1746620460919,5.44514021,1836.5,1836.4,3.38280944]
[1746620461304,0.21622458,1836.5,1836.4,3.38280944]
[1746620461841,5.66136479,1836.5,1836.4,3.38280944]
[1746620463232,5.44543672,1836.4,1836.3,23.29638126]
[1746620463407,5.66136479,1836.5,1836.3,28.72138126]
[1746620463727,0.21218289,1836.4,1836.3,28.72138126]
[1746620464631,5.65761961,1836.4,1836.3,28.72138126]
[1746620465038,5.65761961,1836.4,1836.3,23.29638126]
[1746620465259,5.65761961,1836.4,1836.3,28.72138126]
[1746620465393,5.65761961,1836.4,1836.3,37.32975265]
[1746620465394,0.21218289,1836.4,1836.3,37.32975265]
[1746620465612,0.21218289,1836.4,1836.3,31.88401939]
[1746620465818,5.44397175,1836.9,1836.3,31.88401939]
[1746620466011,0.19130479,1836.4,1836.3,31.88401939]
[1746620466249,5.44523142,1836.5,1836.3,28.20863813]
[1746620466453,0.19209282,1836.4,1836.3,28.20863813]
[1746620466748,5.44523142,1836.5,1836.3,28.20863813]
[1746620466948,0.19243053,1836.4,1836.3,28.20863813]
[1746620468021,0.19243053,1836.4,1836.3,19.621]
[1746620468208,5.63786725,1836.4,1836.3,25.046]
[1746620469135,6.14655628,1836.4,1836.3,25.046]
[1746620469840,5.63786725,1836.4,1836.3,25.046]
[1746620470147,5.63786725,1836.4,1836.3,19.621]
[1746620470360,5.63786725,1836.4,1836.3,25.046]
[1746620470520,5.63786725,1836.4,1836.3,19.621]
[1746620470722,9.45163645,1836.4,1836.3,25.046]
[1746620471326,9.45163645,1836.4,1836.3,5.425]
[1746620472655,5.44632645,1836.1,1836.0,3.67538126]
[1746620472863,5.44632645,1836.1,1836.0,9.10038126]
[1746620473021,6.45259284,1836.1,1836.0,9.10038126]
[1746620473561,9.45259284,1836.1,1836.0,3.67538126]
[1746620474137,10.00259284,1836.1,1836.0,3.67538126]
[1746620474544,9.45259284,1836.1,1836.0,3.67538126]
[1746620476031,5.44691976,1835.9,1835.8,5.425]
[1746620476227,5.75207841,1835.9,1835.8,5.425]
[1746620476557,6.448246,1835.9,1835.8,5.425]
[1746620476967,6.14308735,1835.9,1835.8,5.425]
[1746620478543,5.6344768,1835.9,1835.8,5.425]
[1746620480740,6.14086673,1835.9,1835.8,5.425]
[1746620483248,6.44456103,1835.9,1835.8,5.425]
[1746620484075,9.44456103,1835.9,1835.8,5.425]
[1746620484384,9.14086673,1835.9,1835.8,5.425]
[1746620485674,8.6344768,1835.9,1835.8,5.425]
[1746620488074,5.6344768,1835.9,1835.8,5.425]
[1746620489968,5.6344768,1835.9,1835.8,6.1818]
[1746620491494,0.18755704,1835.9,1835.8,6.1818]
[1746620491694,5.6344768,1835.9,1835.8,6.1818]
[1746620492065,5.6344768,1835.9,1835.8,6.17172348]
[1746620492266,5.6344768,1835.9,1835.8,6.78889583]
[1746620492982,0.18755704,1835.9,1835.8,6.78889583]
[1746620493390,5.6344768,1835.9,1835.8,6.78889583]
[1746620494706,5.6344768,1835.9,1835.8,6.03209583]
[1746620494909,5.6344768,1835.9,1835.8,5.41492348]
[1746620499846,0.18755704,1835.9,1835.8,5.41492348]
[1746620500046,0.18755704,1835.9,1835.8,6.19812348]
[1746620500957,5.44679464,1836.0,1835.8,6.19812348]
[1746620501157,0.18358059,1835.9,1835.8,6.19812348]
[1746620501376,0.18358059,1835.9,1835.8,6.82338276]
[1746620501881,5.63050035,1835.9,1835.8,6.82338276]
[1746620503249,5.63050035,1835.9,1835.8,5.41492348]
[1746620503653,6.138986,1835.9,1835.8,5.41492348]
[1746620504587,5.63050035,1835.9,1835.8,5.41492348]
[1746620506494,0.18358059,1835.9,1835.8,5.41492348]
[1746620506929,5.63050035,1835.9,1835.8,5.41492348]
[1746620510738,5.63050035,1835.9,1835.7,0.8305]
[1746620510739,5.44721647,1835.8,1835.7,0.8305]
[1746620510856,5.63050035,1835.9,1835.8,5.425]
[1746620511053,5.44691976,1835.9,1835.8,5.425]
[1746620511565,6.26031561,1835.9,1835.8,5.425]
[1746620515074,0.81339585,1835.9,1835.8,5.425]
[1746620515268,6.26031561,1835.9,1835.8,5.425]
[1746620515699,6.44411611,1835.9,1835.8,5.425]
[1746620516489,6.13910989,1835.9,1835.8,5.425]
[1746620516695,5.63072026,1835.9,1835.8,5.425]
[1746620518375,6.13955814,1835.9,1835.8,5.425]
[1746620520492,5.63072026,1835.9,1835.8,5.425]
[1746620521618,6.13973115,1835.9,1835.8,5.425]
[1746620521925,6.44513634,1835.9,1835.8,5.425]
[1746620530432,5.44780998,1835.6,1835.5,19.621]
[1746620530612,5.44780998,1835.6,1835.5,25.046]
[1746620530802,5.61527639,1835.6,1835.5,25.046]
[1746620531716,6.12392692,1835.6,1835.5,28.72138126]
[1746620532936,5.61527639,1835.6,1835.5,28.72138126]
[1746620534756,0.16746641,1835.6,1835.5,31.67263939]
[1746620534914,5.44733489,1835.8,1835.5,32.46323939]
[1746620534915,5.44739691,1835.8,1835.5,32.46323939]
[1746620535451,0.16803173,1835.7,1835.5,32.46323939]
[1746620535816,0.16803173,1835.7,1835.5,37.91121425]
[1746620536150,0.16803173,1835.7,1835.5,33.44522687]
[1746620536316,0.16803173,1835.7,1835.6,4.20859563]
[1746620536517,5.4470181,1835.9,1835.6,4.20859563]
[1746620536716,0.16803173,1835.7,1835.6,4.20859563]
[1746620536932,10.89420838,1835.9,1835.6,4.20859563]
[1746620537129,10.89416698,1835.9,1835.7,5.426]
[1746620537452,10.89417832,1835.9,1835.7,5.426]
[1746620537659,5.4470181,1835.9,1835.7,6.38945956]
[1746620538418,5.44703347,1835.9,1835.7,6.38945956]
[1746620539958,5.44670248,1836.0,1835.7,6.38945956]
[1746620540357,5.44692482,1835.9,1835.7,6.44392923]
[1746620541860,5.44621799,1836.2,1835.9,5.44690064]
[1746620542024,5.9550313,1836.1,1835.9,0.62448006]
[1746620542869,5.9550313,1836.1,1835.8,0.7979]
[1746620543179,5.44634083,1836.1,1835.8,0.7979]
[1746620543329,5.44634083,1836.1,1835.8,0.85236493]
[1746620543528,5.44634083,1836.1,1835.8,0.7979]
[1746620543858,5.44664643,1836.0,1835.8,0.7979]
[1746620544027,5.44664643,1836.0,1835.8,2.06137771]
[1746620544773,5.44634083,1836.1,1835.8,2.06137771]
[1746620545070,5.44634083,1836.1,1835.8,5.79122391]
[1746620545765,0.17191206,1836.0,1835.8,5.79122391]
[1746620547443,0.17191206,1836.0,1835.8,11.2383763]
[1746620547650,0.17191206,1836.0,1835.9,1.12383763]
[1746620548471,0.17191206,1836.0,1835.9,1.99460257]
[1746620548768,0.17103433,1836.0,1835.9,7.44150101]
[1746620549134,5.44588172,1836.3,1835.9,7.44150101]
[1746620549334,0.17103433,1836.0,1835.9,7.44136259]
[1746620549537,5.44588172,1836.3,1835.9,6.62506259]
[1746620549737,5.44556259,1836.4,1836.0,6.92523819]
[1746620549937,0.17222732,1836.2,1836.1,5.413]
[1746620550132,5.44575242,1836.3,1836.1,5.413]
[1746620550375,0.17222732,1836.2,1836.1,5.413]
[1746620550778,5.61825716,1836.2,1836.1,5.413]
[1746620554180,5.44632645,1836.1,1836.0,0.8163]
[1746620554397,5.44674777,1836.0,1835.8,3.67538126]
[1746620554544,5.44674777,1836.0,1835.9,5.412]
[1746620554742,5.44632645,1836.1,1835.9,5.412]
[1746620554944,5.44662309,1836.0,1835.9,5.412]
[1746620560785,5.60378405,1836.0,1835.9,5.412]
[1746620561752,5.60378405,1836.0,1835.7,0.7639]
[1746620561954,5.44751321,1835.7,1835.6,3.67538126]
[1746620562269,5.44751321,1835.7,1835.6,9.08738126]
[1746620562789,5.6015335,1835.7,1835.6,9.08738126]
[1746620564486,6.10994002,1835.7,1835.6,9.08738126]
[1746620565577,5.6015335,1835.7,1835.6,9.08738126]
[1746620567283,5.6015335,1835.7,1835.6,5.412]